bitfinex/quotes_SOLUSD_20240626
["timestamp","ask_amount","ask_price","bid_price","bid_amount"]
[1719422760258,7.3828,135.45,135.42,18.4608]
[1719422760462,7.3824,135.46,135.42,25.8452]
[1719422760658,7.3828,135.45,135.41,7.3847]
[1719422761263,8.13,135.43,135.4,7.3853]
[1719422761467,8.13,135.43,135.41,18.462]
[1719422761662,8.13,135.43,135.42,7.3844]
[1719422762173,8.13,135.43,135.37,36.9353]
[1719422762385,15.5142,135.43,135.39,7.3858]
[1719422763062,8.13,135.43,135.4,7.3854]
[1719422763462,15.5139,135.43,135.39,25.8505]
[1719422763878,8.13,135.43,135.36,18.4681]
[1719422764053,8.13,135.43,135.37,7.3871]
[1719422764375,7.385,135.41,135.37,7.3871]
[1719422764575,7.385,135.41,135.38,7.3865]
[1719422764880,15.514,135.43,135.39,7.3858]
[1719422765372,8.13,135.43,135.36,36.9373]
[1719422765582,7.383,135.45,135.41,7.3845]
[1719422766157,7.3833,135.44,135.4,25.8487]
[1719422766778,7.3829,135.45,135.4,18.4634]
[1719422767080,8.1807,135.47,135.4,18.4634]
[1719422767278,7.3833,135.44,135.41,7.3845]
[1719422767579,7.3833,135.44,135.4,18.4634]
[1719422767785,7.3842,135.43,135.4,18.4634]
[1719422767959,7.383,135.45,135.41,7.3845]
[1719422768159,7.3835,135.44,135.4,25.8487]
[1719422768371,7.3842,135.43,135.4,18.4634]
[1719422768576,40.657,135.45,135.37,25.8537]
[1719422768878,7.3851,135.41,135.37,25.8537]
[1719422769269,7.385,135.41,135.38,7.3865]
[1719422769462,19.8765,135.42,135.37,25.854]
[1719422769787,19.8765,135.42,135.38,7.3865]
[1719422770284,19.8765,135.42,135.31,126.85696355]
[1719422770285,19.8765,135.42,135.35,25.8587]
[1719422770575,7.3852,135.41,135.37,7.3868]
[1719422770773,7.3852,135.41,135.37,7.3871]
[1719422771078,7.3855,135.4,135.36,7.3875]
[1719422772760,62.4855,135.4,135.36,7.3875]
[1719422774481,55.1,135.4,135.37,7.387]
[1719422775060,62.4856,135.4,135.36,7.3874]
[1719422778297,15.0793,135.41,135.37,25.8549]
[1719422778582,15.0793,135.41,135.38,7.3865]
[1719422778964,15.0793,135.41,135.37,25.8548]
[1719422779662,7.3857,135.4,135.37,18.4678]
[1719422780384,7.3857,135.4,135.36,7.3872]
[1719422780583,62.4857,135.4,135.36,7.3872]
[1719422781083,55.1,135.4,135.37,7.387]
[1719422781383,7.6942,135.41,135.38,7.3864]
[1719422781586,7.3856,135.4,135.37,25.8546]
[1719422781794,7.3861,135.39,135.36,7.3874]
[1719422782782,7.3856,135.4,135.36,7.3874]
[1719422785672,7.386,135.39,135.35,25.8585]
[1719422786088,7.3857,135.4,135.36,7.3875]
[1719422787099,7.6942,135.41,135.37,7.3871]
[1719422787394,15.0795,135.41,135.37,7.3868]
[1719422787766,7.3856,135.4,135.36,7.3875]
[1719422787970,62.4861,135.39,135.36,18.4691]
[1719422788209,55.1,135.39,135.36,25.8567]
[1719422789500,55.1,135.39,135.33,18.4723]
[1719422789678,7.3873,135.37,135.33,25.8613]
[1719422790572,55.1,135.39,135.33,18.4723]
[1719422790891,20.0,135.38,135.33,18.4723]
[1719422791082,27.3868,135.38,135.34,7.3883]
[1719422792095,7.3881,135.36,135.32,7.3897]
[1719422792397,7.3883,135.35,135.31,7.3901]
[1719422792697,62.488,135.36,135.32,28.67328224]
[1719422792869,7.3882,135.35,135.32,21.28388224]
[1719422793389,7.3882,135.35,135.32,28.67368224]
[1719422793691,62.4878,135.36,135.32,28.67368224]
[1719422794093,55.1,135.36,135.33,7.3888]
[1719422794595,55.1,135.36,135.33,7.3891]
[1719422796602,55.0631,135.36,135.33,7.3891]
[1719422797398,62.4509,135.36,135.32,28.67348224]
[1719422797790,7.3882,135.35,135.32,28.67348224]
[1719422798694,7.3882,135.35,135.32,21.28388224]
[1719422799196,7.3885,135.35,135.32,21.28388224]
[1719422799400,20.0,135.34,135.32,2.80918224]
[1719422799595,27.3891,135.34,135.32,2.80918224]
[1719422800301,82.4891,135.34,135.32,2.80918224]
[1719422801099,7.3877,135.36,135.32,21.28378224]
[1719422801399,7.3877,135.36,135.32,28.67348224]
[1719422802710,7.3877,135.36,135.33,7.3893]
[1719422803502,7.3877,135.36,135.32,21.28378224]
[1719422803503,27.9862,135.37,135.34,7.3887]
[1719422803707,7.3877,135.36,135.33,7.3891]
[1719422803883,7.3877,135.36,135.32,28.67338224]
[1719422805306,7.3883,135.35,135.32,21.28378224]
[1719422805499,7.3889,135.34,135.32,2.80918224]
[1719422805701,55.1,135.35,135.32,2.80918224]
[1719422806003,7.3892,135.34,135.32,2.80918224]
[1719422807506,62.4884,135.35,135.32,2.80918224]
[1719422807680,62.4882,135.35,135.32,2.80918224]
[1719422809006,62.4882,135.35,135.32,10.19898224]
[1719422809299,50.1862,135.37,135.34,18.4719]
[1719422809300,27.9862,135.37,135.34,18.4719]
[1719422809507,75.1,135.36,135.32,2.80918224]
[1719422809704,82.4877,135.36,135.32,10.19888224]
[1719422810306,75.1,135.36,135.33,7.3893]
[1719422810506,75.1,135.36,135.32,10.19878224]
[1719422810726,82.4877,135.36,135.32,10.19878224]
[1719422812002,75.1,135.36,135.32,10.19878224]
[1719422812209,75.1,135.36,135.33,25.8624]
[1719422812791,82.4877,135.36,135.33,18.4732]
[1719422813907,75.1,135.36,135.33,25.8624]
[1719422814115,55.1,135.36,135.34,7.3887]
[1719422814493,55.1,135.36,135.33,25.8623]
[1719422815812,55.1,135.38,135.33,18.4732]
[1719422816005,20.0,135.37,135.34,7.3886]
[1719422816215,27.3871,135.37,135.33,25.8625]
[1719422816414,7.388,135.36,135.33,18.4732]
[1719422816595,7.388,135.36,135.32,2.80918224]
[1719422816596,7.3879,135.36,135.32,10.19898224]
[1719422817606,20.0,135.37,135.35,7.3878]
[1719422817917,20.0,135.37,135.32,2.80918224]
[1719422818235,20.0,135.37,135.33,7.3889]
[1719422818510,27.3873,135.37,135.33,7.3889]
[1719422818692,27.57,135.34,135.33,7.3889]
[1719422818893,27.57,135.34,135.32,21.28258224]
[1719422819102,27.57,135.33,135.32,21.28258224]
[1719422819411,27.57,135.33,135.32,28.67238224]
[1719422820011,27.57,135.33,135.32,2.80918224]
[1719422820613,27.57,135.33,135.32,10.19898224]
[1719422821618,27.57,135.33,135.32,2.80918224]
[1719422822317,27.57,135.33,135.32,10.19898224]
[1719422824706,27.57,135.33,135.32,2.80918224]
[1719422826618,34.9593,135.33,135.32,2.80918224]
[1719422827225,62.5293,135.33,135.32,2.80918224]
[1719422827802,84.8993,135.33,135.32,2.80918224]
[1719422828009,7.3915,135.29,135.25,45.142]
[1719422828228,7.391,135.3,135.26,7.3931]
[1719422828407,27.57,135.27,135.26,7.3931]
[1719422829927,27.57,135.27,135.22,39.47576603]
[1719422830115,7.3924,135.28,135.24,7.3942]
[1719422830317,7.3913,135.3,135.26,7.3931]
[1719422830623,27.57,135.27,135.25,7.3936]
[1719422830924,27.57,135.26,135.25,7.3936]
[1719422831329,7.3898,135.33,135.28,7.3918]
[1719422831628,20.0,135.32,135.29,18.4783]
[1719422831827,27.57,135.3,135.29,25.8698]
[1719422832233,27.57,135.3,135.29,18.4783]
[1719422832418,27.57,135.3,135.24,136.9695]
[1719422832603,27.57,135.29,135.27,25.8733]
[1719422832804,7.3902,135.32,135.28,7.392]
[1719422833005,27.57,135.29,135.28,7.392]
[1719422833506,7.3895,135.33,135.29,7.391]
[1719422833834,27.57,135.3,135.29,18.4786]
[1719422834209,27.57,135.3,135.29,25.87]
[1719422834829,27.57,135.3,135.29,18.4786]
[1719422835131,27.57,135.3,135.26,18.4825]
[1719422835313,27.57,135.3,135.25,7.745]
[1719422835634,27.57,135.29,135.28,7.3917]
[1719422836336,7.3895,135.33,135.28,7.3917]
[1719422836626,27.57,135.29,135.28,7.3917]
[1719422837030,15.1942,135.34,135.3,7.3907]
[1719422837235,27.57,135.31,135.3,7.3907]
[1719422837407,26.5287,135.35,135.31,7.39]
[1719422837614,27.57,135.32,135.31,7.39]
[1719422838102,140.6166,135.38,135.31,18.4751]
[1719422838306,27.57,135.32,135.31,18.4751]
[1719422838506,27.57,135.32,135.31,25.8655]
[1719422839610,118.4166,135.38,135.33,7.3891]
[1719422839818,20.0,135.37,135.33,25.8623]
[1719422840020,27.57,135.35,135.33,25.8623]
[1719422840219,27.3875,135.37,135.33,25.8623]
[1719422840419,27.57,135.35,135.34,7.3887]
[1719422840940,28.0152,135.39,135.35,7.388]
[1719422841110,27.57,135.36,135.35,7.388]
[1719422841434,27.57,135.36,135.34,7.3886]
[1719422841628,7.3872,135.37,135.33,25.8621]
[1719422841931,27.57,135.38,135.33,25.8621]
[1719422841932,27.57,135.34,135.33,18.4731]
[1719422842131,27.57,135.34,135.3,18.4771]
[1719422842331,27.57,135.31,135.28,20.9356]
[1719422842645,7.3889,135.34,135.3,7.3909]
[1719422842833,27.57,135.31,135.3,7.3909]
[1719422844644,7.3887,135.34,135.3,7.3909]
[1719422844844,81.6283,135.36,135.32,7.3895]
[1719422845142,18.4652,135.39,135.28,20.9356]
[1719422845143,62.5274,135.37,135.33,25.8621]
[1719422845344,7.3878,135.36,135.33,18.473]
[1719422845529,62.5273,135.37,135.33,25.8623]
[1719422845837,55.14,135.37,135.32,7.3897]
[1719422846635,7.3878,135.36,135.32,25.8644]
[1719422847441,62.5273,135.37,135.33,7.3892]
[1719422847944,7.3877,135.36,135.33,7.3892]
[1719422848135,62.5273,135.37,135.33,7.3892]
[1719422849536,62.5273,135.37,135.33,7.3891]
[1719422849746,7.3877,135.36,135.33,7.3891]
[1719422850114,7.3877,135.36,135.32,18.4747]
[1719422850115,7.3879,135.36,135.32,25.8645]
[1719422850842,7.3879,135.36,135.33,7.3892]
[1719422851141,62.5273,135.37,135.33,7.3892]
[1719422851334,7.3878,135.36,135.32,25.8643]
[1719422851755,62.5273,135.37,135.33,7.3892]
[1719422852954,7.3877,135.36,135.33,7.3892]
[1719422853134,7.3877,135.36,135.32,25.8643]
[1719422853431,7.3877,135.36,135.33,7.3892]
[1719422853655,62.5273,135.37,135.33,7.3892]
[1719422853834,62.5273,135.37,135.34,7.3887]
[1719422854330,62.5273,135.37,135.33,7.3891]
[1719422854845,7.3878,135.36,135.32,25.8643]
[1719422855647,55.14,135.37,135.34,7.3886]
[1719422855944,62.5274,135.37,135.33,7.3891]
[1719422856146,7.3877,135.36,135.33,7.3891]
[1719422856333,7.3877,135.36,135.32,25.8644]
[1719422857152,62.5273,135.37,135.33,7.3892]
[1719422857555,7.3873,135.37,135.33,7.3892]
[1719422860530,7.3867,135.38,135.34,7.3886]
[1719422860731,7.3872,135.37,135.34,7.3886]
[1719422860939,7.3872,135.37,135.33,7.389]
[1719422861430,7.3878,135.36,135.32,25.8643]
[1719422862350,7.3888,135.34,135.31,7.3902]
[1719422862555,7.3888,135.34,135.3,25.8682]
[1719422863051,7.3889,135.34,135.3,25.8682]
[1719422863350,7.3888,135.34,135.31,7.3904]
[1719422863551,7.3888,135.34,135.3,25.8682]
[1719422863735,7.3883,135.35,135.31,7.3902]
[1719422864646,27.56,135.33,135.31,7.3902]
[1719422864855,8.2882,135.36,135.3,36.9534]
[1719422865036,27.56,135.34,135.33,25.8626]
[1719422865237,27.56,135.35,135.34,7.3887]
[1719422865734,27.56,135.35,135.33,25.8625]
[1719422866453,27.56,135.34,135.33,25.8625]
[1719422866653,27.56,135.34,135.33,18.4733]
[1719422866947,27.56,135.34,135.31,25.8661]
[1719422867249,27.56,135.32,135.31,25.8661]
[1719422867757,27.56,135.33,135.32,7.3898]
[1719422869653,27.56,135.33,135.31,25.866]
[1719422869857,27.56,135.33,135.31,18.4759]
[1719422870338,27.56,135.33,135.31,25.8663]
[1719422871255,27.56,135.33,135.32,7.3898]
[1719422876562,110.24,135.38,135.34,7.3883]
[1719422876763,20.0,135.37,135.34,7.3883]
[1719422876967,27.56,135.35,135.34,7.3883]
[1719422877538,20.0,135.37,135.35,7.388]
[1719422877766,27.56,135.36,135.34,7.3887]
[1719422878063,27.56,135.35,135.34,7.3887]
[1719422878957,27.56,135.35,135.33,25.8618]
[1719422879157,27.56,135.34,135.33,25.8618]
[1719422881155,27.56,135.34,135.33,25.862]
[1719422881342,27.3931,135.39,135.35,7.3878]
[1719422881545,27.56,135.36,135.35,7.3878]
[1719422881746,27.56,135.36,135.34,25.8592]
[1719422882271,27.56,135.36,135.35,7.3882]
[1719422882450,27.3931,135.39,135.36,7.3875]
[1719422882653,27.56,135.37,135.36,7.3875]
[1719422882854,27.56,135.37,135.36,25.8567]
[1719422883044,7.5949,135.39,135.37,7.387]
[1719422883250,27.56,135.38,135.36,25.8567]
[1719422883451,27.56,135.37,135.34,7.3886]
[1719422883661,27.56,135.36,135.34,7.3886]
[1719422884047,27.56,135.36,135.35,7.3882]
[1719422884261,27.56,135.36,135.35,25.8586]
[1719422884777,27.56,135.37,135.36,7.3876]
[1719422887080,27.56,135.37,135.35,25.8584]
[1719422887482,27.56,135.36,135.35,25.8584]
[1719422888968,20.3833,135.42,135.37,18.4676]
[1719422889159,27.56,135.4,135.38,7.3865]
[1719422889367,27.56,135.41,135.38,7.3865]
[1719422889580,27.56,135.4,135.38,7.3865]
[1719422889776,27.56,135.4,135.37,25.8546]
[1719422890581,7.3849,135.41,135.38,7.3865]
[1719422890796,34.9459,135.4,135.37,18.4676]
[1719422891092,20.3833,135.42,135.35,7.388]
[1719422891093,34.9461,135.39,135.35,7.388]
[1719422891295,27.56,135.38,135.36,7.3876]
[1719422891456,27.56,135.39,135.36,7.3876]
[1719422891662,27.56,135.41,135.38,7.3866]
[1719422891958,7.384,135.43,135.39,25.851]
[1719422892155,27.56,135.41,135.4,7.3855]
[1719422892384,27.56,135.42,135.41,7.3848]
[1719422892580,7.383,135.45,135.41,7.3848]
[1719422892882,27.56,135.43,135.42,7.3844]
[1719422893079,7.382,135.47,135.4,46.641]
[1719422893378,27.56,135.46,135.43,7.3837]
[1719422894064,27.56,135.44,135.4,19.081]
[1719422894265,27.56,135.44,135.41,7.3846]
[1719422895173,27.56,135.44,135.4,37.5434]
[1719422895174,27.56,135.44,135.42,7.3844]
[1719422895787,7.385,135.41,135.37,25.8537]
[1719422895966,27.56,135.38,135.37,25.8537]
[1719422896986,7.3835,135.44,135.4,7.3853]
[1719422897193,27.56,135.41,135.4,7.3853]
[1719422897395,27.56,135.41,135.39,25.8505]
[1719422897696,27.56,135.4,135.39,25.8505]
[1719422897991,7.3834,135.44,135.4,7.385]
[1719422898301,27.56,135.42,135.41,7.3845]
[1719422898797,8.3666,135.45,135.42,18.4609]
[1719422898984,27.56,135.43,135.42,25.8451]
[1719422900287,27.56,135.47,135.45,7.3823]
[1719422900476,2.81162361,135.46,135.45,7.3823]
[1719422900785,2.81162361,135.46,135.45,25.8396]
[1719422900974,30.37162361,135.46,135.45,25.8396]
[1719422901177,30.37162361,135.46,135.44,7.3833]
[1719422901380,30.37162361,135.46,135.42,55.3808]
[1719422901584,2.81162361,135.46,135.44,18.4581]
[1719422901791,27.56,135.45,135.44,18.4581]
[1719422901995,27.56,135.45,135.44,25.8412]
[1719422902796,27.56,135.45,135.44,18.4581]
[1719422903203,27.56,135.45,135.44,25.8414]
[1719422903377,27.56,135.45,135.44,18.4581]
[1719422904304,27.56,135.45,135.44,25.8414]
[1719422904595,27.56,135.45,135.44,18.4581]
[1719422904799,27.56,135.45,135.42,7.3844]
[1719422905095,27.56,135.43,135.42,7.3844]
[1719422905288,27.56,135.44,135.43,25.8435]
[1719422908482,2.81162361,135.46,135.44,7.383]
[1719422908686,27.56,135.45,135.44,7.383]
[1719422909317,2.81162361,135.46,135.45,7.3827]
[1719422909488,30.37162361,135.46,135.45,7.3827]
[1719422909814,2.81162361,135.46,135.45,25.8396]
[1719422909985,2.81162361,135.46,135.45,26.0096]
[1719422910183,2.81162361,135.46,135.45,26.1796]
[1719422911109,2.81162361,135.46,135.45,26.0096]
[1719422911295,2.81162361,135.46,135.45,25.8396]
[1719422913514,30.37162361,135.46,135.45,25.8396]
[1719422915726,30.37162361,135.46,135.45,18.4569]
[1719422915939,30.37162361,135.46,135.45,25.8396]
[1719422916811,2.81162361,135.46,135.45,25.8396]
[1719422917019,10.19402361,135.46,135.43,18.4596]
[1719422917806,10.19402361,135.46,135.42,7.384]
[1719422918012,10.19402361,135.46,135.43,7.3837]
[1719422918213,10.19402361,135.46,135.42,7.3842]
[1719422918730,7.3828,135.45,135.42,7.3842]
[1719422918924,10.19402361,135.46,135.43,7.3837]
[1719422919114,2.81162361,135.46,135.43,7.3837]
[1719422919422,22.81162361,135.46,135.43,7.3837]
[1719422919806,22.81162361,135.46,135.44,7.3831]
[1719422920025,22.81162361,135.46,135.43,7.3836]
[1719422920419,30.19392361,135.46,135.43,7.3836]
[1719422920815,22.81162361,135.46,135.43,7.3836]
[1719422922324,22.81162361,135.46,135.44,7.3833]
[1719422922523,22.81162361,135.46,135.43,7.3838]
[1719422922722,30.19382361,135.46,135.42,25.844]
[1719422923024,22.81162361,135.46,135.42,18.4598]
[1719422923223,30.19382361,135.46,135.42,25.8439]
[1719422924120,7.3828,135.45,135.42,18.4598]
[1719422924619,7.3829,135.45,135.41,7.3848]
[1719422925130,30.19412361,135.46,135.42,7.3843]
[1719422925731,22.81162361,135.46,135.42,18.4608]
[1719422925908,22.81162361,135.46,135.45,7.3827]
[1719422925909,2.81162361,135.46,135.45,7.3827]
[1719422926832,2.81162361,135.46,135.44,25.8413]
[1719422927136,2.81162361,135.46,135.41,18.4616]
[1719422927333,2.81162361,135.46,135.43,7.3835]
[1719422927721,2.81162361,135.46,135.44,7.3832]
[1719422928344,2.81162361,135.46,135.45,7.3827]
[1719422928528,2.81162361,135.46,135.44,7.3832]
[1719422928728,2.81162361,135.46,135.45,7.3827]
[1719422930635,2.81162361,135.46,135.44,25.84]
[1719422931321,2.81162361,135.46,135.45,7.3827]
[1719422933830,2.81162361,135.46,135.41,18.4612]
[1719422933831,31.29762361,135.46,135.41,18.4612]
[1719422934030,7.3836,135.44,135.41,18.4612]
[1719422934430,62.413,135.45,135.41,25.8461]
[1719422935137,55.03,135.45,135.42,7.3841]
[1719422935636,11.13392361,135.46,135.43,18.4585]
[1719422935837,2.81162361,135.46,135.44,7.3831]
[1719422936026,2.81162361,135.46,135.43,25.8421]
[1719422936932,2.81162361,135.46,135.44,7.3829]
[1719422937438,2.81162361,135.46,135.45,7.3827]
[1719422937643,2.81162361,135.46,135.45,25.8396]
[1719422941148,2.81162361,135.46,135.45,26.0096]
[1719422941345,2.81162361,135.46,135.45,26.1796]
[1719422943347,28.2635,135.55,135.51,7.3793]
[1719422943548,27.3779,135.54,135.5,25.8293]
[1719422944545,20.886,135.55,135.52,18.4472]
[1719422944852,62.716,135.56,135.52,25.8259]
[1719422945029,7.3773,135.55,135.52,18.4472]
[1719422945224,55.03,135.57,135.52,25.8261]
[1719422945451,55.03,135.57,135.49,7.0066]
[1719422945452,7.3779,135.54,135.51,7.3793]
[1719422945653,7.3779,135.54,135.5,7.3798]
[1719422946753,7.3779,135.54,135.51,7.3794]
[1719422947046,15.3011,135.55,135.51,7.3794]
[1719422947245,7.9236,135.55,135.47,56.2837]
[1719422947445,20.0,135.56,135.48,0.34]
[1719422947754,20.0,135.57,135.51,18.4478]
[1719422947956,7.3772,135.56,135.53,7.3784]
[1719422948131,27.3763,135.57,135.53,7.3784]
[1719422948636,27.3763,135.57,135.52,7.3787]
[1719422948637,7.3771,135.56,135.52,7.3787]
[1719422948944,20.0,135.57,135.51,18.4478]
[1719422949451,27.3764,135.57,135.53,7.378]
[1719422950252,20.0,135.57,135.54,7.3775]
[1719422950452,19.4549,135.62,135.57,7.3758]
[1719422950637,20.0,135.61,135.58,7.3755]
[1719422950951,7.3736,135.62,135.58,7.3755]
[1719422951351,7.3742,135.61,135.57,25.8161]
[1719422952832,2.81162361,135.6,135.57,18.44]
[1719422953381,2.81162361,135.6,135.59,7.3751]
[1719422954047,2.81162361,135.6,135.59,25.813]
[1719422954472,2.81162361,135.6,135.59,26.153]
[1719422955142,2.81162361,135.6,135.59,25.813]
[1719422955348,2.81162361,135.6,135.58,7.3756]
[1719422955660,2.81162361,135.6,135.59,7.3751]
[1719422960254,2.81162361,135.6,135.59,7.7151]
[1719422961660,2.81162361,135.6,135.59,7.5451]
[1719422963958,2.81162361,135.6,135.59,7.3751]
[1719422964756,2.81162361,135.6,135.59,35.1451]
[1719422964940,2.81162361,135.6,135.59,7.7151]
[1719422965257,2.81162361,135.6,135.59,7.5451]
[1719422965764,2.81162361,135.6,135.59,7.3751]
[1719422966152,30.24162361,135.6,135.59,7.3751]
[1719422966752,2.81162361,135.6,135.59,7.3751]
[1719422975162,2.81162361,135.6,135.59,7.7151]
[1719422976153,2.81162361,135.6,135.59,27.252]
[1719422978865,0.8411848,135.64,135.63,25.8055]
[1719422979074,0.8411848,135.64,135.63,26.1455]
[1719422980173,8.0042,135.72,135.7,18.4224]
[1719422980355,8.0042,135.72,135.7,25.7915]
[1719422980860,28.3216,135.71,135.63,0.17]
[1719422981053,20.9526,135.71,135.63,0.17]
[1719422981256,7.3698,135.69,135.63,0.17]
[1719422981474,20.9526,135.71,135.63,0.17]
[1719422981775,7.3695,135.7,135.66,25.7993]
[1719422981963,7.3695,135.7,135.67,7.3707]
[1719422982164,28.3214,135.71,135.68,7.3702]
[1719422982464,20.9526,135.71,135.68,7.3702]
[1719422982961,28.3213,135.71,135.67,7.3705]
[1719422983397,20.9526,135.71,135.63,0.17]
[1719422983562,28.3213,135.71,135.68,18.4256]
[1719422984071,20.9526,135.71,135.68,25.7955]
[1719422984262,28.3212,135.71,135.68,18.4256]
[1719422984458,7.3692,135.7,135.67,7.3706]
[1719422984770,7.3692,135.7,135.66,7.3711]
[1719422985670,28.3213,135.71,135.67,7.3706]
[1719422986060,28.3213,135.71,135.67,25.7972]
[1719422986260,27.8213,135.71,135.67,25.7972]
[1719422986859,20.4526,135.71,135.67,25.7971]
[1719422987358,20.4526,135.71,135.67,18.4267]
[1719422987765,20.4526,135.71,135.67,25.7974]
[1719422988272,79.9,135.8,135.63,100.34]
[1719422988273,7.8566,135.76,135.69,18.4242]
[1719422988459,22.2,135.75,135.68,7.3701]
[1719422988665,7.3682,135.72,135.68,25.7956]
[1719422989370,27.1111,135.71,135.65,18.4285]
[1719422990168,34.4798,135.71,135.67,7.3706]
[1719422990457,27.1111,135.71,135.67,18.4269]
[1719422991376,27.1111,135.71,135.68,7.3701]
[1719422991857,8.1018,135.71,135.67,18.4269]
[1719422992168,26.8023,135.74,135.65,136.858]
[1719422992364,26.8023,135.74,135.72,7.3676]
[1719422992577,26.8023,135.74,135.72,25.7878]
[1719422993281,26.8023,135.74,135.71,7.3685]
[1719422993480,34.1693,135.74,135.71,7.3685]
[1719422993885,26.8023,135.74,135.71,7.3685]
[1719422995185,26.8023,135.74,135.72,7.368]
[1719422995881,62.2661,135.76,135.73,7.3675]
[1719422996069,62.2661,135.76,135.71,18.4215]
[1719422996273,62.2661,135.76,135.72,7.3678]
[1719422996568,7.3664,135.75,135.71,25.79]
[1719422996773,7.3671,135.74,135.7,7.3689]
[1719422997283,54.9,135.72,135.67,18.427]
[1719422997475,62.2685,135.72,135.68,7.37]
[1719422997783,54.9,135.72,135.69,7.3695]
[1719422998420,54.9,135.72,135.7,7.3691]
[1719422998890,54.9,135.72,135.69,7.3696]
[1719422999788,62.2682,135.72,135.69,7.3696]
[1719422999994,62.2682,135.72,135.68,25.7943]
[1719423000483,54.9,135.72,135.68,18.4243]
[1719423000684,54.9,135.72,135.69,7.3695]
[1719423000987,54.9,135.72,135.69,7.3693]
[1719423001183,54.9,135.72,135.7,7.3689]
[1719423001382,54.9,135.72,135.69,7.3695]
[1719423001587,62.2681,135.72,135.69,7.3695]
[1719423001971,54.9,135.72,135.65,36.8585]
[1719423002276,54.9,135.72,135.69,7.3695]
[1719423003484,54.9,135.72,135.7,7.369]
[1719423003690,54.9,135.72,135.71,7.3686]
[1719423003879,34.1411,135.75,135.72,7.3679]
[1719423003880,81.6746,135.75,135.72,7.3679]
[1719423004283,89.0411,135.75,135.72,7.3679]
[1719423004475,89.0411,135.75,135.71,7.3685]
[1719423004676,27.41,135.72,135.71,7.3685]
[1719423004877,34.1411,135.75,135.71,7.3685]
[1719423005074,27.41,135.72,135.71,7.3685]
[1719423005581,27.41,135.72,135.7,25.7916]
[1719423005915,27.41,135.71,135.68,7.3701]
[1719423006191,27.41,135.69,135.68,7.3701]
[1719423006575,7.3677,135.73,135.68,7.3701]
[1719423006784,62.2081,135.72,135.68,7.3701]
[1719423006985,54.84,135.72,135.69,7.3696]
[1719423007183,54.84,135.72,135.67,18.4258]
[1719423007387,54.84,135.72,135.69,7.3694]
[1719423007588,62.2082,135.72,135.68,7.37]
[1719423007998,54.84,135.72,135.69,7.3695]
[1719423008889,62.2081,135.72,135.69,7.3695]
[1719423009202,62.2081,135.72,135.68,25.7943]
[1719423009492,7.3686,135.71,135.67,7.3707]
[1719423009677,7.371,135.67,135.62,18.4325]
[1719423009881,7.3712,135.67,135.62,18.4325]
[1719423010099,54.84,135.68,135.62,18.4325]
[1719423010303,7.3712,135.67,135.63,7.3728]
[1719423010491,7.3716,135.66,135.63,7.3729]
[1719423010799,7.3709,135.67,135.63,7.3729]
[1719423011001,7.3715,135.66,135.62,25.8058]
[1719423011173,7.3715,135.66,135.63,7.3729]
[1719423011378,54.84,135.68,135.62,25.8058]
[1719423011578,7.372,135.65,135.62,18.4325]
[1719423011798,62.212,135.65,135.62,25.806]